fUST/lending_fUST_20251219
["ID","MTS","AMOUNT","RATE_DAILY","PERIOD"]
[399172249,1766133944856,-150.0,0.00059,120]
[399172250,1766133944875,-150.0,0.0006,120]
[399172251,1766133944895,-150.0,0.00061,120]
[399172252,1766133944916,-150.0,0.00062,120]
[399172253,1766133944935,-1000.0,0.00062,120]
[399172254,1766133944953,-150.0,0.00063,120]
[399172255,1766133944972,-1000.0,0.00063,120]
[399172256,1766133944991,-150.0,0.00064,120]
[399172257,1766133945010,-1000.0,0.00064,120]
[399172258,1766133945028,-150.0,0.00065,120]
[399172259,1766133945047,-1000.0,0.00065,120]
[399172260,1766133945066,-150.0,0.00066,120]
[399172261,1766133945085,-150.0,0.00067,120]
[399172262,1766133945103,-150.0,0.00068,120]
[399172263,1766133945122,-150.0,0.00069,120]
[399172264,1766133945141,-2000.0,0.00069,120]
[399172265,1766133945158,-8830.0,0.0007,120]
[399172266,1766133945176,-150.0,0.0007,120]
[399172267,1766133945195,-150.0,0.00071,120]
[399172268,1766133945213,-150.0,0.00072,120]
[399172269,1766133945231,-150.0,0.00073,120]
[399172270,1766133945250,-150.0,0.00074,120]
[399172271,1766133945269,-150.0,0.00075,120]
[399172272,1766133945288,-150.0,0.00076,120]
[399172273,1766133945306,-150.0,0.00077,120]
[399172274,1766133945324,-150.0,0.00078,120]
[399172275,1766133945347,-150.0,0.00079,120]
[399172276,1766133945366,-2000.0,0.00079,120]
[399172277,1766133945385,-508.36290087,0.00079452,120]
[399172278,1766133945404,-500.0,0.00079452,120]
[399172279,1766133945424,-200.0,0.00079452,120]
[399172280,1766133945442,-500.0,0.00079452,120]
[399172281,1766133945460,-509.38737332,0.00079452,120]
[399172282,1766133945480,-500.0,0.00079452,120]
[399172283,1766133945499,-500.0,0.00079452,120]
[399172284,1766133945517,-500.0,0.00079452,120]
[399172285,1766133945537,-1666.66,0.00079452,120]
[399172286,1766133945556,-150.0,0.0008,120]
[399172287,1766133945574,-150.0,0.00081,120]
[399172288,1766133945592,-150.0,0.00082,120]
[399172289,1766133945611,-150.0,0.00083,120]
[399172290,1766133945629,-150.0,0.00084,120]
[399172291,1766133945648,-150.0,0.00085,120]
[399172292,1766133945668,-150.0,0.00086,120]
[399172293,1766133945687,-150.0,0.00087,120]
[399172294,1766133945707,-1000.37524453,0.00088,120]
[399172295,1766133945726,-150.0,0.00088,120]
[399172296,1766133945745,-2000.0,0.00089,120]
[399172297,1766133945767,-150.0,0.00089,120]
[399172298,1766133945787,-150.0,0.0009,120]
[399172299,1766133945808,-150.0,0.00091,120]
[399172300,1766133945828,-150.0,0.00092,120]
[399172301,1766133945849,-150.0,0.00093,120]
[399172302,1766133945868,-150.0,0.00094,120]
[399172303,1766133945888,-150.0,0.00095,120]
[399172304,1766133945910,-150.0,0.00096,120]
[399172305,1766133945930,-150.0,0.00097,120]
[399172306,1766133945952,-230.0,0.00098,120]
[399172307,1766133945972,-2000.0,0.00099,120]
[399172308,1766133945992,-500.0,0.00104109,120]
[399172309,1766133946011,-204.9562548,0.00104109,120]
[399172310,1766133946031,-500.0,0.00104109,120]
[399172311,1766133946051,-500.0,0.00104109,120]
[399172312,1766133946073,-500.0,0.00104109,120]
[399172313,1766133946093,-500.0,0.00104109,120]
[399172314,1766133946114,-1666.66,0.00104109,120]
[399172315,1766133946136,-10000.0,0.0012,30]
[399172316,1766133946158,-2000.0,0.0012,120]
[399172317,1766133946178,-1041.66666667,0.0012,30]
[399172318,1766133946197,-500.0,0.00128767,120]
[399172319,1766133946217,-500.0,0.00128767,120]
[399172320,1766133946237,-500.0,0.00128767,120]
[399172321,1766133946257,-500.0,0.00128767,120]
[399172322,1766133946278,-500.0,0.00128767,120]
[399172323,1766133946299,-1666.66,0.00128767,120]
[399172324,1766133946322,-2000.0,0.0014,120]
[399172325,1766133946344,-299.0,0.00152493,120]
[399172326,1766133946365,-299.0,0.00152493,120]
[399172327,1766133946385,-299.0,0.00152493,120]
[399172328,1766133946404,-346.068709,0.00153424,120]
[399172329,1766133946424,-500.0,0.00153424,120]
[399172330,1766133946443,-500.0,0.00153424,120]
[399172331,1766133946463,-500.0,0.00153424,120]
[399172332,1766133946482,-500.0,0.00153424,120]
[399172333,1766133946502,-1666.66,0.00153424,120]
[399172334,1766133946522,-8000.0,0.0016,30]
[399172335,1766133946541,-2000.0,0.0016,120]
[399172336,1766133946561,-514.8901119,0.00178082,120]
[399172337,1766133946580,-500.0,0.00178082,120]
[399172338,1766133946599,-500.4300001,0.00178082,120]
[399172339,1766133946620,-500.0,0.00178082,120]
[399172340,1766133946641,-1666.66,0.00178082,120]
[399172341,1766133946661,-3000.0,0.0018,120]
[399172342,1766133946681,-155.0,0.0019,120]
[399172343,1766133946701,-1041.66666667,0.002,120]
[399172344,1766133946722,-500.0,0.00202739,120]
[399172345,1766133946742,-500.0,0.00202739,120]
[399172346,1766133946766,-1666.66,0.00202739,120]
[399172347,1766133946785,-6000.0,0.0021,30]
[399172348,1766133946804,-370.38530816,0.00227297,120]
[399172349,1766133946823,-500.0,0.00227397,120]
[399172350,1766133946843,-1666.66,0.00227397,120]
[399172351,1766133946862,-42065.50694876,0.0025,20]
[399172354,1766133991583,150.0,0.0001707,2]
[399172355,1766133991980,150.0,0.00017883,2]
[399172356,1766134034093,-188.15,0.00045,30]
[399172357,1766134034115,-188.15,0.0004725,30]
[399172358,1766134034135,-188.15,0.00049613,30]
[399172359,1766134034155,-188.15,0.00052093,30]
[399172360,1766134034177,-159554.195089,0.001199,120]
[399172361,1766134037074,-847899.669267,0.001199,120]
[399172362,1766134040133,-82949.397399,0.001199,120]
[399172363,1766134047079,-500.0,0.00054791,10]
[399172364,1766134047101,-140510.801182,0.001199,120]
[399172365,1766134047266,150.0,5.2e-07,2]
[399172366,1766134048345,150.0,5.2e-07,2]
[399172367,1766134049371,150.0,5.2e-07,2]
[399172368,1766134050407,-200.0,0.0011966,120]
[399172369,1766134050432,-2531803.51679048,0.001199,120]
[399172370,1766134050455,-1012.85,0.0012,2]
[399172371,1766134052113,-1112.0,0.00227396,120]
[399172372,1766134052133,-500.0,0.00227396,120]
[399172373,1766134052152,-671.47464602,0.0024875,60]
[399172374,1766134052178,-7934.49305123,0.0025,20]
[399172375,1766134052205,-500.0,0.00252054,120]
[399172376,1766134052230,-1666.66,0.00252054,120]
[399172377,1766134052257,-1112.0,0.00253725,84]
[399172378,1766134052282,-500.0,0.00253725,84]
[399172379,1766134052304,-1112.0,0.00263299,75]
[399172380,1766134052327,-500.0,0.00263299,75]
[399172381,1766134052349,-686.3371229,0.00273,120]
[399172382,1766134052370,-500.0,0.00276712,120]
[399172383,1766134052394,-1666.66,0.00276712,120]
[399172384,1766134052418,-645.27645891,0.00279999,120]
[399172385,1766134052440,-324.76257957,0.00279999,31]
[399172386,1766134052468,-318.19273628,0.00279999,120]
[399172387,1766134052491,-3000.0,0.0028,120]
[399172388,1766134052515,-4000.0,0.0028,30]
[399172389,1766134052536,-686.3371229,0.00283733,120]
[399172390,1766134052559,-1112.0,0.00287999,90]
[399172391,1766134052581,-500.0,0.00287999,90]
[399172392,1766134052604,-686.3371229,0.00294467,120]
[399172393,1766134052627,-1112.0,0.00299999,112]
[399172394,1766134052647,-500.0,0.00299999,112]
[399172395,1766134052671,-500.0,0.00301369,120]
[399172396,1766134052694,-1666.66,0.00301369,120]
[399172397,1766134052716,-1012.85,0.00302,2]
[399172398,1766134052737,-686.3371229,0.003052,120]
[399172399,1766134052758,-1112.0,0.00308099,81]
[399172400,1766134052782,-500.0,0.00308099,81]
[399172401,1766134052804,-686.3371229,0.00315933,120]
[399172402,1766134052829,-500.0,0.00326027,120]
[399172403,1766134052851,-1666.66,0.00326027,120]
[399172404,1766134052873,-686.3371229,0.00326667,120]
[399172405,1766134052896,-1112.0,0.00330549,114]
[399172406,1766134052924,-500.0,0.00330549,114]
[399172407,1766134052954,-686.3371229,0.003374,120]
[399172408,1766134052978,-686.3371229,0.00348133,120]
[399172409,1766134053005,-1112.0,0.00349999,30]
[399172410,1766134053030,-500.0,0.00349999,30]
[399172411,1766134053054,-1000.0,0.0035,120]
[399172412,1766134053081,-1001.0,0.0035,120]
[399172413,1766134053104,-500.0,0.00350684,120]
[399172414,1766134053127,-1666.66,0.00350684,120]
[399172415,1766134053152,-686.3371229,0.00358867,120]
[399172416,1766134053176,-1000.0,0.0036,120]
[399172417,1766134053200,-686.3371229,0.003696,120]
[399172418,1766134053223,-1000.0,0.0037,120]
[399172419,1766134053248,-3000.0,0.0037,30]
[399172420,1766134053268,-500.0,0.00375342,120]
[399172421,1766134053289,-1666.66,0.00375342,120]
[399172422,1766134053310,-3000.0,0.0038,120]
[399172423,1766134053330,-1000.0,0.0038,120]
[399172424,1766134053351,-686.3371229,0.00380333,120]
[399172425,1766134053373,-155.0,0.0039,120]
[399172426,1766134053396,-1000.0,0.0039,120]
[399172427,1766134053419,-686.3371229,0.00391067,120]
[399172428,1766134053443,-1112.0,0.00399998,31]
[399172429,1766134053467,-500.0,0.00399998,31]
[399172430,1766134053488,-500.0,0.004,120]
[399172431,1766134053509,-1666.66,0.004,120]
[399172432,1766134053531,-1012.85,0.004,2]
[399172433,1766134053552,-686.3371229,0.004018,120]
[399172434,1766134053573,-686.3371229,0.00412533,120]
[399172435,1766134053595,-686.3371229,0.00423267,120]
[399172436,1766134053615,-500.0,0.00424657,120]
[399172437,1766134053651,-1666.66,0.00424657,120]
[399172438,1766134053688,-686.3371229,0.00434,120]
[399172439,1766134053709,-686.3371229,0.00444733,120]
[399172440,1766134053731,-410.00000002,0.00449315,120]
[399172441,1766134053753,-1666.66,0.00449315,120]
[399172442,1766134053793,-752.788265,0.0044973,2]
[399172443,1766134053963,-500.0,0.0044973,2]
[399172444,1766134053988,-500.0,0.0044973,2]
[399172445,1766134054013,-500.0,0.0044973,2]
[399172446,1766134054036,-500.0,0.0044973,2]
[399172447,1766134054056,-500.0,0.0044973,2]
[399172448,1766134054076,-500.0,0.0044973,2]
[399172449,1766134054097,-500.0,0.0044973,2]
[399172450,1766134054116,-500.0,0.0044973,2]
[399172451,1766134054136,-500.0,0.0044973,2]
[399172452,1766134054157,-500.0,0.0044973,2]
[399172453,1766134054177,-500.0,0.0044973,2]
[399172454,1766134054196,-1000.0,0.0045,120]
[399172455,1766134054215,-686.3371229,0.00455467,120]
[399172456,1766134054234,-686.3371229,0.004662,120]
[399172457,1766134054255,-1666.66,0.00473972,120]
[399172458,1766134054276,-686.3371229,0.00476933,120]
[399172459,1766134054297,-5000.0,0.0048,120]
[399172460,1766134054316,-2000.0,0.0048,30]
[399172461,1766134054334,-686.3371229,0.00487667,120]
[399172462,1766134054354,-1000.0,0.0049,120]
[399172463,1766134054372,-1000.0,0.0049,120]
[399172464,1766134054393,-566.35597435,0.0049325,5]
[399172465,1766134054412,-225.84545021,0.004984,120]
[399172466,1766134055695,500.0,0.00054791,120]
[399172467,1766134055919,150.0,0.00020431,2]
[399172468,1766134056330,150.0,0.00021404,2]
[399172469,1766134056869,150.0,0.00022377,2]
[399172471,1766134081858,500.0,0.00054794,120]
[399172472,1766134082096,500.0,0.00079452,120]
[399172473,1766134082332,500.0,0.00104109,120]
[399172611,1766134232467,-500.0,0.00054794,120]
[399172613,1766134232476,-500.0,0.00054794,120]
[399172615,1766134232486,-500.0,0.00072,120]
[399172617,1766134232495,-500.0,0.00076,120]
[399172619,1766134232504,-500.0,0.00079452,120]
[399172621,1766134232514,-500.0,0.00079452,120]
[399172623,1766134232524,-500.0,0.00104109,120]
[399172625,1766134232533,-500.0,0.00104109,120]
[399172627,1766134232542,-500.0,0.00128767,120]
[399172629,1766134232551,-500.0,0.00128767,120]
[399172631,1766134232559,-500.0,0.00128767,120]
[399172634,1766134232568,-674.0,0.0015,120]
[399172637,1766134232578,-500.0,0.00153424,120]
[399172640,1766134232588,-500.0,0.00153424,120]
[399172642,1766134232597,-500.0,0.00153424,120]
[399172645,1766134232606,-341.11700306,0.00178082,120]
[399172656,1766134233452,-158.88299694,0.00178082,120]
[399172657,1766134233463,-500.0,0.00178082,120]
[399172658,1766134233473,-500.0,0.00178082,120]
[399172659,1766134233482,-500.0,0.00202739,120]
[399172660,1766134233492,-500.0,0.00202739,120]
[399172661,1766134233502,-500.0,0.00202739,120]
[399172662,1766134233512,-500.0,0.00227397,120]
[399172663,1766134233522,-500.0,0.00227397,120]
[399172664,1766134233531,-293.12326599,0.00227397,120]
[399172665,1766134233541,-500.0,0.00252054,120]
[399172666,1766134233550,-500.0,0.00252054,120]
[399172667,1766134233559,-498.00000079,0.00276712,120]
[399172668,1766134233568,-500.0,0.00276712,120]
[399172669,1766134233577,-500.0,0.00301369,120]
[399172670,1766134233586,-500.0,0.00308098,81]
[399172671,1766134233596,-500.0,0.00308099,81]
[399172672,1766134233605,-500.0,0.00326027,120]
[399172673,1766134233615,-500.0,0.00330548,114]
[399172674,1766134233624,-500.0,0.00330549,114]
[399172675,1766134233633,-500.0,0.00349999,30]
[399172676,1766134233642,-500.0,0.00350684,120]
[399172677,1766134233651,-500.0,0.00375342,120]
[399172678,1766134233660,-452.05692989,0.00399997,31]
[399172745,1766134238902,-47.94307011,0.00399997,31]
[399172747,1766134238911,-500.0,0.00399998,31]
[399172749,1766134238922,-999.89988003,0.004,120]
[399172751,1766134238931,-500.0,0.004,120]
[399172752,1766134238940,-500.0,0.00424657,120]
[399172753,1766134238950,-500.0,0.00449315,120]
[399172754,1766134238960,-500.0,0.00473972,120]
[399172755,1766134238969,-500.0,0.00479999,30]
[399172756,1766134238978,-7307.08362919,0.004983,120]
[399172757,1766134238987,-500.0,0.00498399,120]
[399172758,1766134238997,-460.49167269,0.004984,120]
[399172759,1766134239006,-500.0,0.0049863,120]
[399172760,1766134239015,-1372.6742455,0.005,120]
[399172761,1766134239024,-686.3371229,0.00509133,120]
[399172762,1766134239034,-686.3371229,0.00519867,120]
[399172763,1766134239043,-500.12,0.00523287,120]
[399172764,1766134239053,-686.3371229,0.005306,120]
[399172765,1766134239062,-686.3371229,0.00541333,120]
[399172766,1766134239072,-500.0,0.0054967,2]
[399172767,1766134239081,-500.0,0.0054967,2]
[399172768,1766134239091,-500.0,0.0054967,2]
[399172769,1766134239100,-500.0,0.0054967,2]
[399172770,1766134239109,-202.49842454,0.0054967,2]
[399172771,1766134239118,-1000.0,0.0055,120]
[399172772,1766134239128,-686.3371229,0.00552067,120]
[399172773,1766134239138,-686.3371229,0.005628,120]
[399172774,1766134239147,-686.3371229,0.00573533,120]
[399172775,1766134239157,-5000.0,0.0058,120]
[399172776,1766134239166,-686.3371229,0.00584267,120]
[399172777,1766134239175,-5000.0,0.00588,120]
[399172778,1766134239184,-1000.0,0.0059,120]
[399172779,1766134239193,-686.3371229,0.00595,120]
[399172780,1766134239202,-686.3371229,0.00616467,120]
[399172781,1766134239212,-1691.82733955,0.0062,30]
[399172782,1766134239221,-686.3371229,0.006272,120]
[399172784,1766134239231,-155.21873373,0.0063,120]
[399172786,1766134239240,-10000.0,0.0063,120]
[399172788,1766134239249,-686.3371229,0.00637933,120]
[399172790,1766134239259,-10000.0,0.0064,120]
[399172792,1766134239269,-686.3371229,0.00648667,120]
[399172794,1766134239279,-1000.0,0.0065,120]
[399172796,1766134239288,-10000.0,0.0065,120]
[399172798,1766134239297,-1000.0,0.0065,120]
[399172800,1766134239306,-686.3371229,0.006594,120]
[399172802,1766134239315,-1000.0,0.0066,120]
[399172804,1766134239324,-10000.0,0.0066,120]
[399172806,1766134239332,-1000.0,0.0067,120]
[399172808,1766134239341,-10000.0,0.0067,120]
[399172810,1766134239351,-686.3371229,0.00670133,120]
[399172812,1766134239359,-5000.0,0.0068,120]
[399172814,1766134239368,-1000.0,0.0068,120]
[399172816,1766134239378,-10000.0,0.0068,120]
[399172818,1766134239387,-1707.71817962,0.0068,120]
[399172820,1766134239396,-686.3371229,0.00680867,120]
[399172822,1766134239405,-20000.0,0.00688,120]
[399172824,1766134239415,-1000.0,0.0069,120]
[399172826,1766134239424,-10000.0,0.0069,120]
[399172828,1766134239432,-686.3371229,0.006916,120]
[399172830,1766134239442,-1000.0,0.007,120]
[399172832,1766134239451,-1009.0,0.007,120]
[399172835,1766134239460,-999.97393543,0.007,120]
[399172836,1766134239469,-2274.0,0.007,120]
[399172838,1766134239478,-10000.0,0.007,120]
[399172840,1766134239487,-279.48412659,0.007,120]
[399172842,1766134239496,-8668.14907411,0.00702,120]
[399172845,1766134239506,-686.3371229,0.00702333,120]
[399172847,1766134239515,-1000.0,0.0071,120]
[399172849,1766134239524,-10000.0,0.0071,120]
[399172851,1766134239533,-686.3371229,0.00713067,120]
[399172853,1766134239543,-10000.0,0.0072,120]
[399172855,1766134239551,-686.3371229,0.007238,120]
[399172857,1766134239560,-85404.70079,0.00727,120]
[399172859,1766134239571,-10000.0,0.0073,120]
[399172861,1766134239581,-686.3371229,0.00734533,120]
[399172863,1766134239589,-79999.960001,0.00737,120]
[399172865,1766134239598,-40000.0,0.007388,120]
[399172867,1766134239606,-50000.0,0.007388,120]
[399172869,1766134239615,-50000.0,0.007399,120]
[399172871,1766134239624,-728.72764686,0.0074,120]
[399172873,1766134239633,-10000.0,0.0074,120]
[399172875,1766134239644,-686.3371229,0.00745267,120]
[399172877,1766134239655,-10000.0,0.007488,120]
[399172879,1766134239665,-8739.66427207,0.007488,120]
[399172881,1766134239674,-40000.0,0.007488,120]
[399172883,1766134239684,-50000.0,0.007488,120]
[399172885,1766134239693,-53111.3227,0.007499,120]
[399172887,1766134239701,-43448.4286589,0.007499,120]
[399172890,1766134239723,-42279.2557141,0.007499,120]
[399172892,1766134239732,-3114.0,0.007499,120]
[399172894,1766134239740,-48817.8186489,0.007499,120]
[399172897,1766134239761,-9216.599711,0.007499,120]
[399173375,1766134244527,-345.69295432,0.0074989,120]
[399173377,1766134244538,-15322.17384368,0.007499,120]
[399173588,1766134246557,-18660.74042,0.007499,120]
[399173726,1766134247892,-276.07,0.0074989,120]
[399173728,1766134247902,-17535.796121,0.007499,120]
[399173765,1766134313501,150.0,0.00016974,2]
[399173815,1766134546726,1238.0,0.00019,2]
[399174080,1766135431648,-366.90199872,0.0002366,2]
[399174118,1766135437769,-782.31976552,0.0002366,2]
[399174120,1766135437778,-2171.98023448,0.0002376,2]
[399174122,1766135437789,-476.32654036,0.0002376,2]
[399175231,1766135591626,150.0,0.00011054,2]
[399175232,1766135592026,150.0,0.00012059,2]
[399175233,1766135592441,150.0,0.00013064,2]
[399175259,1766135784795,150.0,0.00010732,2]
[399175260,1766135785188,150.0,0.00011708,2]
[399175261,1766135786090,150.0,0.00012684,2]
[399175345,1766136105689,196.212371,0.00013699,2]
[399175469,1766136583467,151.0,5.2e-07,2]
[399175531,1766136631828,-386.45471109,0.000215,7]
[399175533,1766136631839,-2359.04371689,0.00022823,2]
[399175535,1766136631849,-256.0017281,0.0002376,2]
[399175537,1766136631858,-3554.78744891,0.000241,2]
[399175582,1766136637939,-1445.21255109,0.000241,2]
[399175584,1766136637950,-169.69724,0.000245,2]
[399175586,1766136637959,-300.0,0.00024649,2]
[399175588,1766136637968,-2325.36167502,0.0002465,2]
[399176844,1766136888237,150.0,5.2e-07,2]
[399176845,1766136889259,150.0,5.2e-07,2]
[399177026,1766137343076,-150.0,0.00019264,2]
[399177027,1766137343099,-66.44630836,0.00021015,2]
[399177051,1766137397412,150.0,0.00015811,2]
[399177052,1766137397808,150.0,0.00017249,2]
[399177053,1766137398212,150.0,0.00018686,2]
[399177066,1766137464180,150.0,0.0001593,2]
[399177067,1766137464572,150.0,0.00017378,2]
[399177091,1766137671270,-2330.00000003,0.00019723,2]
[399177093,1766137747131,-2669.99999997,0.00019723,2]
[399177094,1766137747150,-767.0,0.00022401,2]
[399177095,1766137747169,-250.0,0.00023448,2]
[399177096,1766137747188,-155.0,0.000236,2]
[399177097,1766137747206,-155.0,0.000245,3]
[399177098,1766137747227,-615.08837417,0.00024558,2]
[399177099,1766137747246,-276.07,0.0002464,10]
[399177100,1766137747265,-500.0,0.00024648,2]
[399177101,1766137747286,-423.18480538,0.00024648,2]
[399177102,1766137747304,-500.0,0.00024648,2]
[399177103,1766137747324,-500.0,0.00024648,2]
[399177104,1766137747343,-500.0,0.00024649,2]
[399177105,1766137747363,-500.0,0.00024649,2]
[399177106,1766137747381,-500.0,0.00024649,2]
[399177107,1766137747400,-163.98361146,0.00024649,2]
[399177108,1766137747420,-500.0,0.00024649,2]
[399177109,1766137747439,-500.0,0.00024649,2]
[399177110,1766137747460,-500.0,0.00024649,2]
[399177111,1766137747481,-500.0,0.00024649,2]
[399177112,1766137747502,-500.0,0.00024649,2]
[399177113,1766137747523,-500.0,0.00024649,2]
[399177114,1766137747544,-500.0,0.00024649,2]
[399177115,1766137747565,-500.0,0.00024649,2]
[399177116,1766137747584,-500.0,0.00024649,2]
[399177117,1766137747603,-500.0,0.00024649,2]
[399177118,1766137747623,-500.0,0.00024649,2]
[399177119,1766137747643,-500.0,0.00024649,2]
[399177120,1766137747666,-500.0,0.00024649,2]
[399177121,1766137747685,-500.0,0.00024649,2]
[399177122,1766137747705,-500.0,0.00024649,2]
[399177123,1766137747729,-500.0,0.00024649,2]
[399177124,1766137747749,-422.86321612,0.00024649,2]
[399177125,1766137747769,-363.73462647,0.00024649,2]
[399177126,1766137747793,-307.48813016,0.00024649,2]
[399177127,1766137747813,-500.0,0.00024649,2]
[399177128,1766137747832,-500.0,0.00024649,2]
[399177129,1766137747854,-500.0,0.00024649,2]
[399177130,1766137747873,-512.50802268,0.00024649,2]
[399177131,1766137747892,-83471.28068245,0.0002465,2]
[399177132,1766137747909,-151.75927968,0.00024658,2]
[399177133,1766137747927,-280.0,0.00024658,2]
[399177134,1766137747945,-500.0,0.00024773,30]
[399177135,1766137747963,-500.0,0.00024773,30]
[399177136,1766137747981,-500.0,0.00024773,30]
[399177137,1766137747998,-16803.00056433,0.00024774,2]
[399177138,1766137748017,-10000.0,0.00024798,2]
[399177139,1766137748037,-8776.01764449,0.000248,2]
[399177140,1766137748055,-192.69404158,0.000249,2]
[399177141,1766137748075,-8776.01764449,0.0002499,2]
[399177142,1766137748094,-10388.43105614,0.00025,2]
[399177143,1766137748113,-10364.0,0.00025,2]
[399177144,1766137748132,-160.34,0.00025,2]
[399177145,1766137748153,-600.0,0.00025141,10]
[399177146,1766137748171,-19900.0,0.00026,2]
[399177147,1766137748192,-720.0,0.00027655,30]
[399177148,1766137748210,-499.999999,0.0002787,2]
[399177149,1766137748228,-8776.01764449,0.0002798,2]
[399177150,1766137748249,-17552.035289,0.0002799,2]
[399177151,1766137748268,-83393.21602306,0.00028,2]
[399177152,1766137748288,-216.02,0.00028,14]
[399177153,1766137748307,-5134.38,0.00028,2]
[399177154,1766137748328,-864.0,0.00030421,30]
[399177155,1766137748348,-863.23850709,0.00032273,2]
[399177156,1766137748366,-254.86620341,0.00033,2]
[399177157,1766137748388,-1000.0,0.00033463,30]
[399177158,1766137748407,-500.0,0.00035616,7]
[399177159,1766137748428,-500.0,0.00035616,7]
[399177160,1766137748447,-500.0,0.00035616,7]
[399177161,1766137748466,-500.0,0.00035616,7]
[399177162,1766137748484,-500.0,0.00035616,7]
[399177163,1766137748504,-500.0,0.00035616,7]
[399177164,1766137748523,-500.0,0.00035616,7]
[399177165,1766137748542,-330.71401365,0.00035616,7]
[399177166,1766137748561,-500.0,0.00035616,7]
[399177167,1766137748580,-500.0,0.00035616,7]
[399177168,1766137748599,-500.0,0.00035616,7]
[399177169,1766137748617,-500.0,0.00035616,7]
[399177170,1766137748637,-500.0,0.00035616,7]
[399177171,1766137748656,-500.0,0.00035616,7]
[399177172,1766137748677,-500.0,0.00035616,7]
[399177173,1766137748697,-500.0,0.00035616,7]
[399177174,1766137748716,-500.0,0.00035616,7]
[399177175,1766137748736,-500.0,0.00035616,7]
[399177176,1766137748756,-500.0,0.00035616,7]
[399177177,1766137748776,-500.0,0.00035616,7]
[399177178,1766137748798,-500.0,0.00035616,7]
[399177179,1766137748816,-199.994,0.00035616,7]
[399177180,1766137748838,-1000.0,0.00036809,30]
[399177181,1766137748860,-244.0,0.00036809,30]
[399177182,1766137748880,-500.0,0.00036999,30]
[399177183,1766137748993,-500.0,0.00036999,30]
[399177184,1766137749013,-5000.0,0.00037,2]
[399177185,1766137749036,-1000.0,0.0004049,60]
[399177186,1766137749057,-492.0,0.0004049,60]
[399177187,1766137749077,-1000.0,0.00042534,30]
[399177188,1766137749097,-5134.38,0.000426,2]
[399177189,1766137749116,-370.38530816,0.00043415,15]
[399177190,1766137749136,-500.0,0.00044499,120]
[399177191,1766137749156,-558.48,0.00044499,120]
[399177192,1766137749176,-500.0,0.00044499,120]
[399177193,1766137749196,-500.0,0.00044499,120]
[399177194,1766137749218,-1041.66666667,0.000445,120]
[399177195,1766137749239,-1000.0,0.00044539,60]
[399177196,1766137749260,-791.0,0.00044539,60]
[399177197,1766137749280,-229.66,0.00044682,120]
[399177198,1766137749298,-1245.49,0.000447,14]
[399177199,1766137749317,-216.02,0.000455,30]
[399177200,1766137749335,-170.456924,0.00045703,2]
[399177201,1766137749354,-170.456924,0.00045703,61]
[399177202,1766137749373,-170.456924,0.00045703,120]
[399177203,1766137749393,-8776.01764449,0.00048983,4]